lending/lending_fUSD_20240219
["ID","MTS","AMOUNT","RATE_DAILY","PERIOD"]
[314418887,1708325434101,-500.0,0.00038827,4]
[314418888,1708325434110,-500.0,0.00038827,4]
[314418889,1708325434120,-297.75497661,0.00038827,4]
[314418890,1708325434129,-500.0,0.00038827,4]
[314418891,1708325434138,-500.0,0.00038827,4]
[314418892,1708325434148,-500.0,0.00038827,4]
[314418893,1708325434157,-211.13900055,0.00038828,2]
[314418894,1708325434169,-454.16783312,0.00038828,2]
[314418895,1708325434179,-500.0,0.00038828,2]
[314418896,1708325434188,-177.4443856,0.00038828,4]
[314418897,1708325434198,-422.61547832,0.00038828,4]
[314418898,1708325434207,-500.0,0.00038828,4]
[314418899,1708325434218,-217.72262169,0.00038828,4]
[314418900,1708325434228,-543.3889164,0.00038828,4]
[314418901,1708325434237,-290.76569401,0.00038828,4]
[314418902,1708325434247,-569.35680319,0.00038828,4]
[314418903,1708325434256,-530.54970707,0.00038828,4]
[314418904,1708325434266,-500.0,0.00038828,2]
[314418905,1708325434275,-500.0,0.00038828,4]
[314418906,1708325434285,-550.51598869,0.00038828,4]
[314418907,1708325434295,-545.39497053,0.00038828,4]
[314418908,1708325434305,-200.59810338,0.00038828,4]
[314418909,1708325434315,-568.83380575,0.00038828,4]
[314418910,1708325434324,-549.41390961,0.00038828,4]
[314418911,1708325434334,-598.91789502,0.00038828,4]
[314418912,1708325434343,-536.53628362,0.00038828,4]
[314418913,1708325434354,-564.93165044,0.00038828,4]
[314418914,1708325434363,-573.02099105,0.00038828,4]
[314418915,1708325434373,-555.67136358,0.00038828,4]
[314418916,1708325434383,-500.0,0.00038828,4]
[314418917,1708325434393,-500.0,0.00038828,4]
[314418918,1708325434403,-558.3068228,0.00038828,4]
[314418919,1708325434413,-259.52420561,0.00038828,4]
[314418920,1708325434423,-500.0,0.00038828,4]
[314418921,1708325434433,-500.0,0.00038828,4]
[314418922,1708325434443,-500.0,0.00038828,4]
[314418923,1708325434453,-500.0,0.00038828,4]
[314418924,1708325434464,-500.0,0.00038828,4]
[314418925,1708325434473,-500.0,0.00038828,4]
[314418926,1708325434482,-500.0,0.00038828,4]
[314418927,1708325434492,-500.0,0.00038828,4]
[314418928,1708325434502,-500.0,0.00038828,4]
[314418929,1708325434511,-113.24400964,0.00038829,4]
[314418930,1708325434525,-386.75599036,0.00038829,4]
[314418931,1708325434534,-567.25852142,0.00038829,4]
[314418932,1708325434551,-299.42368159,0.00038829,4]
[314418933,1708325434563,-105.78779699,0.00038829,4]
[314418934,1708325434573,-500.0,0.00038829,4]
[314418935,1708325434582,-176.5188412,0.00038829,4]
[314418936,1708325434594,-165.85493541,0.00038829,4]
[314418937,1708325434604,-503.87681362,0.00038829,4]
[314418938,1708325434613,-500.0,0.00038829,4]
[314418939,1708325434623,-563.14,0.00038829,4]
[314418940,1708325434632,-500.0,0.00038829,4]
[314418941,1708325434641,-500.0,0.00038829,2]
[314418942,1708325434651,-634.2,0.00038829,4]
[314418943,1708325434660,-400.33948117,0.00038829,4]
[314418944,1708325434673,-99.66051883,0.00038829,4]
[314418945,1708325434683,-495.77405444,0.00038829,4]
[314418946,1708325434692,-500.0,0.00038829,4]
[314418947,1708325434701,-475.74448542,0.00038829,2]
[314418948,1708325438286,-24.25551458,0.00038829,2]
[314418949,1708325438295,-500.0,0.00038829,4]
[314418950,1708325438304,-500.0,0.00038829,2]
[314418951,1708325438313,-1243.05499255,0.00038851,2]
[314418953,1708325438325,-1706.11083192,0.00038851,2]
[314418955,1708325438334,-2949.16582447,0.00038876,2]
[314418957,1708325438344,-150.0,0.00038891,2]
[314418959,1708325438353,-2500.0,0.00038899,2]
[314418961,1708325438362,-152.7,0.000389,3]
[314418964,1708325438371,-152.7,0.000389,3]
[314418966,1708325438381,-152.7,0.000389,3]
[314418967,1708325438390,-152.7,0.000389,3]
[314418968,1708325438399,-152.7,0.000389,3]
[314418969,1708325438408,-152.7,0.000389,3]
[314418970,1708325438417,-2679.08,0.000389,3]
[314418971,1708325438427,-2679.08,0.000389,3]
[314418972,1708325438436,-2679.08,0.000389,3]
[314418973,1708325438446,-2679.08,0.000389,3]
[314418974,1708325438455,-2679.08,0.000389,3]
[314418975,1708325438464,-2679.08,0.000389,3]
[314418976,1708325438473,-2679.08,0.000389,3]
[314418977,1708325438483,-2679.08,0.000389,3]
[314418978,1708325438492,-2679.08,0.000389,3]
[314418979,1708325438501,-2679.08,0.000389,3]
[314418980,1708325438510,-2679.08,0.000389,3]
[314418981,1708325438521,-2679.08,0.000389,3]
[314418982,1708325438530,-2679.08,0.000389,3]
[314418983,1708325438539,-2679.08,0.000389,3]
[314418984,1708325438549,-2679.08,0.000389,3]
[314418985,1708325438558,-2679.08,0.000389,3]
[314418986,1708325438611,-2679.08,0.000389,3]
[314418987,1708325438621,-2679.08,0.000389,3]
[314418988,1708325438630,-2679.08,0.000389,3]
[314418989,1708325438639,-2679.08,0.000389,3]
[314418990,1708325438649,-2949.16582447,0.00038901,2]
[314418991,1708325438658,-150.0,0.00038931,2]
[314418992,1708325438667,-5300.70970371,0.00038932,2]
[314418993,1708325438677,-411.83766367,0.00038932,2]
[314418994,1708325438686,-208.0,0.0003894,2]
[314418995,1708325438695,-155.55,0.00038954,2]
[314418997,1708325438705,-154.52,0.00038958,2]
[314418999,1708325438715,-2006.7773,0.00038967,2]
[314419001,1708325438724,-150.0,0.00038976,2]
[314419003,1708325438733,-905.55167512,0.00038984,2]
[314419005,1708325438742,-5000.0,0.00038986,2]
[314419007,1708325438751,-500.0,0.00038989,4]
[314419009,1708325438760,-500.0,0.00038989,4]
[314419011,1708325438769,-500.0,0.00038989,4]
[314419013,1708325438779,-500.0,0.00038989,4]
[314419015,1708325438788,-571.62,0.00038989,4]
[314419017,1708325438797,-500.0,0.00038989,4]
[314419019,1708325438806,-35515.35117666,0.0003899,4]
[314419024,1708325438835,-41751.11248234,0.0003899,4]
[314419026,1708325438844,-150.0,0.00038991,2]
[314419028,1708325438853,-150.0,0.00038993,2]
[314419030,1708325438863,-48470.16279064,0.00038999,2]
[314419032,1708325438872,-171.6266356,0.00038999,4]
[314419034,1708325438884,-273.14010341,0.00038999,4]
[314419036,1708325438893,-500.0,0.00038999,4]
[314419038,1708325438902,-500.0,0.00038999,4]
[314419039,1708325438911,-500.0,0.00038999,4]
[314419042,1708325438920,-31846.2641,0.00039,2]
[314419044,1708325438930,-749.22347906,0.00039,2]
[314419046,1708325438939,-247.85755619,0.00039,2]
[314419048,1708325438948,-154.44706682,0.00039,2]
[314419049,1708325438958,-282301.07905462,0.00039,30]
[314419076,1708325441003,-2094.61112959,0.00039,30]
[314419077,1708325441015,-1698.52317393,0.00039,30]
[314419078,1708325441064,-713.16322836,0.00039,30]
[314419079,1708325441191,-877.16886363,0.00039,30]
[314419082,1708325443323,-1293.79166905,0.00039,30]
[314419083,1708325443383,-51246.11755316,0.00039,30]
[314419084,1708325443392,-162.67004231,0.00039,30]
[314419085,1708325443401,-150.0,0.00039001,2]
[314419086,1708325443411,-5000.0,0.00039001,3]
[314419087,1708325443420,-150.0,0.00039009,2]
[314419088,1708325443429,-150.0,0.00039015,2]
[314419089,1708325443438,-259.2255289,0.00039019,2]
[314419090,1708325443447,-4546.5543995,0.00039019,2]
[314419091,1708325443456,-574.09191482,0.00039019,2]
[314419092,1708325443465,-869.96048942,0.0003902,2]
[314419093,1708325443475,-720.27328844,0.0003902,2]
[314419094,1708325443484,-495.0366183,0.0003902,2]
[314419095,1708325443494,-858.67571515,0.00039021,12]
[314419096,1708325443503,-500.0,0.00039026,4]
[314419097,1708325443513,-558.99999999,0.00039026,4]
[314419098,1708325443522,-500.0,0.00039026,4]
[314419099,1708325443533,-536.257,0.00039026,2]
[314419100,1708325443542,-164.678,0.00039026,2]
[314419101,1708325443552,-5231.257,0.00039026,2]
[314419102,1708325443561,-2305.428,0.00039026,2]
[314419103,1708325443570,-19186.079,0.00039026,2]
[314419104,1708325443580,-2948.63,0.00039026,2]
[314419105,1708325443589,-1037.0,0.00039026,2]
[314419106,1708325443598,-250.0,0.00039026,2]
[314419107,1708325443608,-171.05,0.00039026,2]
[314419108,1708325443617,-150.0,0.00039041,2]
[314419109,1708325443626,-600.2951,0.00039051,2]
[314419110,1708325443635,-80032.736304,0.00039051,2]
[314419111,1708325443645,-500.0,0.00039056,4]
[314419113,1708325443655,-500.0,0.00039056,4]
[314419114,1708325443664,-550.05018158,0.00039056,4]
[314419115,1708325443673,-200.12337631,0.00039056,4]
[314419116,1708325443681,-500.0,0.00039056,4]
[314419117,1708325443691,-500.0,0.00039056,4]
[314419118,1708325443699,-425.6938801,0.00039056,4]
[314419119,1708325443709,-500.0,0.00039056,4]
[314419121,1708325443718,-238.09942292,0.00039056,4]
[314419123,1708325443727,-500.0,0.00039056,4]
[314419125,1708325443736,-500.0,0.00039056,4]
[314419126,1708325443745,-500.0,0.00039056,4]
[314419127,1708325443755,-500.0,0.00039056,4]
[314419128,1708325443764,-500.0,0.00039056,4]
[314419129,1708325443773,-139647.13313507,0.00039057,3]
[314419130,1708325443783,-77266.463659,0.00039057,4]
[314419131,1708325443791,-500.0,0.00039066,4]
[314419132,1708325443800,-346.59588904,0.00039066,4]
[314419133,1708325443809,-500.0,0.00039066,4]
[314419134,1708325443818,-500.0,0.00039066,4]
[314419135,1708325443828,-500.0,0.00039066,4]
[314419136,1708325443837,-500.0,0.00039066,4]
[314419137,1708325443846,-500.0,0.00039066,4]
[314419138,1708325443855,-500.0,0.00039066,4]
[314419139,1708325443864,-500.0,0.00039066,4]
[314419140,1708325443874,-500.0,0.00039066,4]
[314419141,1708325443886,-500.0,0.00039066,4]
[314419142,1708325443895,-500.0,0.00039066,4]
[314419143,1708325443904,-500.0,0.00039066,4]
[314419144,1708325443914,-500.0,0.00039066,4]
[314419145,1708325443923,-500.0,0.00039066,4]
[314419146,1708325443932,-500.0,0.00039066,4]
[314419147,1708325443941,-500.0,0.00039066,4]
[314419148,1708325443950,-500.0,0.00039066,4]
[314419149,1708325443961,-500.0,0.00039066,4]
[314419150,1708325443971,-772.51,0.00039066,4]
[314419151,1708325443980,-649.2401846,0.00039066,4]
[314419152,1708325443989,-500.0,0.00039066,4]
[314419153,1708325443998,-624.88,0.00039066,4]
[314419154,1708325444007,-500.0,0.00039066,4]
[314419155,1708325444016,-500.0,0.00039066,4]
[314419156,1708325444025,-543.58,0.00039066,4]
[314419157,1708325444034,-500.0,0.00039066,4]
[314419158,1708325444043,-500.0,0.00039066,4]
[314419159,1708325444052,-3403.82728277,0.00039067,2]
[314419160,1708325444066,-8515.63076634,0.00039067,2]
[314419161,1708325444077,-1008.28687562,0.00039067,2]
[314419162,1708325444089,-39695.72962532,0.00039067,2]
[314419163,1708325444098,-634.48692682,0.00039067,2]
[314419164,1708325444109,-459.52724864,0.00039067,2]
[314419165,1708325444119,-1107.42790514,0.00039067,2]
[314419166,1708325444128,-5684.8095764,0.0003908,4]
[314419167,1708325444139,-11960.55989993,0.0003908,4]
[314419168,1708325444151,-500.0,0.0003908,4]
[314419169,1708325444162,-351.86900247,0.0003908,4]
[314419170,1708325444173,-392.29490377,0.0003908,4]
[314419171,1708325444184,-1519.45712106,0.0003908,4]
[314419172,1708325444196,-271.83505795,0.0003908,4]
[314419173,1708325444207,-278.02097649,0.0003908,4]
[314419174,1708325444218,-48012.74227001,0.0003908,4]
[314419175,1708325444229,-2224.73315891,0.0003908,4]
[314419176,1708325444245,-5240.31569975,0.0003908,4]
[314419177,1708325444256,-829.82599226,0.0003908,4]
[314419178,1708325444265,-194.63946875,0.00039082,4]
[314419179,1708325444281,-381.87407514,0.00039082,4]
[314419180,1708325444292,-9778.05370593,0.00039082,4]
[314419181,1708325444303,-49669.72661175,0.00039082,4]
[314419182,1708325444314,-3181.43630894,0.00039082,4]
[314419183,1708325444326,-495.13548268,0.00039082,4]
[314419190,1708325446291,-203.98215559,0.00039077,2]
[314419191,1708325446300,-255.59644121,0.00039082,4]
[314419192,1708325446313,-334.58939694,0.00039082,4]
[314419193,1708325446351,-1249.55954294,0.00039082,4]
[314419194,1708325446412,-3016.59626308,0.00039082,4]
[314419195,1708325446423,-2517.88592748,0.00039082,4]
[314419196,1708325446435,-2329.17685,0.00039082,4]
[314419197,1708325446447,-433.77264747,0.00039082,4]
[314419198,1708325446474,-644.28818466,0.00039082,4]
[314419199,1708325446486,-2784.13275203,0.00039082,4]
[314419200,1708325446496,-525.62095453,0.00039089,4]
[314419201,1708325446505,-972.47,0.00039089,4]
[314419202,1708325446515,-500.0,0.00039089,4]
[314419203,1708325446524,-454.96865344,0.00039089,2]
[314419204,1708325446537,-45.03134656,0.00039089,2]
[314419205,1708325446547,-500.0,0.00039089,4]
[314419206,1708325446557,-563.14,0.00039089,4]
[314419207,1708325446566,-500.0,0.00039089,4]
[314419208,1708325446575,-500.0,0.00039089,4]
[314419209,1708325446584,-500.0,0.00039089,2]
[314419210,1708325446594,-634.2,0.00039089,4]
[314419211,1708325446603,-500.0,0.00039089,2]
[314419212,1708325446613,-500.0,0.00039089,4]
[314419213,1708325446622,-500.0,0.00039089,4]
[314419214,1708325446631,-500.0,0.00039089,4]
[314419215,1708325446640,-500.0,0.00039089,4]
[314419216,1708325446650,-500.0,0.00039089,4]
[314419217,1708325446660,-309.51945608,0.00039089,4]
[314419218,1708325446669,-500.0,0.00039089,4]
[314419219,1708325446679,-500.0,0.00039089,4]
[314419220,1708325446689,-500.0,0.00039089,4]
[314419221,1708325446698,-496.95665951,0.00039089,4]
[314419222,1708325446708,-500.0,0.00039089,4]
[314419223,1708325446717,-500.0,0.00039089,4]
[314419224,1708325446726,-500.0,0.00039089,4]
[314419225,1708325446736,-500.0,0.00039089,4]
[314419226,1708325446745,-500.0,0.00039089,2]
[314419227,1708325446754,-3789.20332419,0.0003909,4]
[314419228,1708325446766,-588.83001,0.0003909,4]
[314419229,1708325446783,-2546.24871056,0.0003909,4]
[314419230,1708325446799,-739.47897671,0.0003909,4]
[314419231,1708325446810,-447.42503021,0.0003909,4]
[314419232,1708325446827,-627.102,0.0003909,4]
[314419233,1708325470345,1806.32726966,0.00023,2]
[314419234,1708325470368,449.74273026,0.00023,2]
[314419235,1708325470391,399450.0,0.00023,2]
[314419236,1708325470421,1455234.89534401,0.00023,2]
[314419237,1708325566835,10705.67191646,0.0002509,2]
[314419238,1708325591285,205.0,9.8e-05,2]
[314419239,1708325661937,357.31015024,0.00025,2]
[314419245,1708325997487,-490.91856827,0.00026298,2]
[314419246,1708325997515,-490.91856827,0.00026298,2]
[314419247,1708325997542,-155.0,0.00026299,2]
[314419248,1708325997569,-462.66138383,0.000263,2]
[314419249,1708325997597,-300.0,0.00027049,2]
[314419250,1708325997623,-13100.50147963,0.0002705,2]
[314419257,1708326449135,-155.0,0.00027048,2]
[314419258,1708326449155,-297.38454572,0.00027049,2]
[314419259,1708326449185,-193.53402255,0.00027049,2]
[314419260,1708326449204,-463.29709977,0.00027049,2]
[314419265,1708326554100,-27.6214685,0.00027049,2]
[314419266,1708326554119,-490.91856827,0.00027049,2]
[314419267,1708326554139,-490.91856827,0.00027049,2]
[314419268,1708326554158,-827.4516279,0.00027049,2]
[314419269,1708326554177,-1078.75936314,0.0002705,2]
[314419270,1708326554196,-207.03040392,0.000281,2]
[314419273,1708326561095,-1338.19571956,0.000281,2]
[314419274,1708326561117,-158.20344836,0.00029799,2]
[314419275,1708326561138,-1479.55732966,0.000299,2]
[314419276,1708326568089,-247.22549821,0.000299,2]
[314419277,1708326568108,-360.43720995,0.0003,2]
[314419282,1708326619991,360.43720995,0.0003,2]
[314419290,1708326631539,-158.20344831,0.00031652,2]
[314419291,1708326631549,-500.0,0.000329,2]
[314419292,1708326631558,-158.20344831,0.00033506,2]
[314419293,1708326631567,-455.81474753,0.00033997,2]
[314419294,1708326631654,-743.38022725,0.00033997,2]
[314419295,1708326631664,-304.42271591,0.00033997,4]
[314419296,1708326631673,-265.94155574,0.00033998,4]
[314419297,1708326631683,-27917.5583129,0.00033999,2]
[314419298,1708326631695,-16111.46412674,0.00033999,2]
[314419299,1708326631705,-1495.0,0.00034,2]
[314419300,1708326631714,-7308.0,0.00034,2]
[314419301,1708326631724,-364.27,0.00034529,2]
[314419302,1708326631733,-235.0,0.00035,2]
[314419303,1708326631742,-158.20344831,0.00035359,2]
[314419304,1708326631751,-237.20153138,0.00036,2]
[314419305,1708326631760,-163.11,0.00036165,2]
[314419306,1708326631770,-250.0,0.00036216,111]
[314419307,1708326631779,-2000.0,0.00036412,2]
[314419308,1708326631788,-657.78,0.00036412,4]
[314419309,1708326631797,-150.0,0.00036425,2]
[314419310,1708326631807,-239.45,0.00036434,2]
[314419311,1708326631817,-176.45,0.00036448,2]
[314419312,1708326631826,-250.0,0.00036448,2]
[314419313,1708326631836,-150.68,0.00036489,2]
[314419314,1708326631846,-152.01,0.00036489,2]
[314419315,1708326631855,-250.0,0.00036506,2]
[314419316,1708326631866,-172.19,0.00036517,2]
[314419317,1708326631876,-200.0,0.00036526,2]
[314419318,1708326631887,-151.0,0.0003665,7]
[314419319,1708326631898,-800.0,0.00036684,2]
[314419320,1708326631908,-152.01,0.00036718,2]
[314419321,1708326631918,-150.08,0.00036777,2]
[314419322,1708326631927,-163.11,0.00036792,2]
[314419323,1708326631938,-364.27,0.00036793,2]
[314419324,1708326631948,-713.13,0.00036826,2]
[314419325,1708326631958,-152.01,0.00036946,2]
[314419326,1708326631967,-1000.0,0.00037,2]
[314419327,1708326631978,-152.01,0.00037174,2]
[314419328,1708326631988,-158.20344831,0.00037213,2]
[314419329,1708326631997,-151.0,0.00037398,4]
[314419330,1708326632007,-152.01,0.00037402,2]
[314419331,1708326632017,-163.11,0.00037418,2]
[314419332,1708326632026,-152.01,0.0003763,2]
[314419333,1708326632036,-152.01,0.00037858,2]
[314419334,1708326632046,-172.19,0.00037868,2]
[314419335,1708326632057,-6289.73517018,0.0003788,2]
[314419336,1708326632080,-5037.48223788,0.0003788,2]
[314419337,1708326632090,-150.1,0.000379,2]
[314419338,1708326632100,-158.54281262,0.00037961,7]
[314419339,1708326632111,-268.68447262,0.00037961,7]
[314419340,1708326632121,-7465.26900907,0.00038,2]
[314419341,1708326632131,-349.0,0.00038,120]
[314419342,1708326632141,-157.0,0.00038,2]
[314419343,1708326632152,-181.804306,0.00038,3]
[314419344,1708326632162,-163.11,0.00038045,2]
[314419345,1708326632172,-152.01,0.00038086,2]
[314419346,1708326632183,-152.0,0.00038119,3]
[314419347,1708326632193,-2463.688,0.00038128,2]
[314419348,1708326632203,-19865.0,0.00038128,2]
[314419349,1708326632212,-1038.0,0.00038128,2]
[314419350,1708326632225,-150.68,0.00038133,2]
[314419351,1708326632237,-151.0,0.00038161,2]
[314419352,1708326632246,-237.05,0.000382,2]
[314419353,1708326632255,-326.25,0.00038246,3]
[314419354,1708326632265,-10190.3584,0.00038256,2]
[314419355,1708326632276,-152.01,0.00038314,2]
[314419356,1708326632287,-150.0,0.00038356,2]
[314419357,1708326632297,-474.65,0.00038356,15]
[314419358,1708326632308,-413.01524027,0.00038388,13]
[314419359,1708326632318,-1760.92011547,0.00038388,14]
[314419360,1708326632329,-5908.04503693,0.00038514,2]
[314419361,1708326632338,-152.01,0.00038542,2]
[314419362,1708326632348,-2000.0,0.000386,2]
[314419363,1708326632358,-501.85680339,0.00038626,2]
[314419364,1708326632369,-26518.8,0.00038627,2]
[314419365,1708326632379,-1653.1374,0.00038627,2]
[314419366,1708326632388,-157.0,0.0003863,14]
[314419367,1708326632398,-3973.03063954,0.0003867,2]
[314419368,1708326632407,-843.23146,0.000387,2]
[314419369,1708326632416,-500.0,0.00038726,4]
[314419370,1708326632426,-500.0,0.00038726,4]
[314419371,1708326632436,-609.50696342,0.00038726,4]
[314419372,1708326632446,-570.00177916,0.00038726,4]
[314419373,1708326632455,-613.37556194,0.00038726,4]
[314419374,1708326632473,-500.46641979,0.00038726,4]
[314419375,1708326632483,-500.0,0.00038726,4]
[314419376,1708326632492,-500.0,0.00038726,4]
[314419377,1708326632501,-500.0,0.00038726,4]
[314419378,1708326632510,-272.4,0.00038726,4]
[314419379,1708326632519,-744.92,0.00038726,4]
[314419380,1708326632528,-500.0,0.00038726,4]
[314419381,1708326632538,-352.12,0.00038726,4]
[314419382,1708326632547,-500.0,0.00038726,4]
[314419383,1708326632556,-321.63177731,0.00038726,4]
[314419384,1708326632566,-53630.99809757,0.00038727,2]
[314419385,1708326632587,-1016.27333657,0.00038727,2]
[314419388,1708326638710,-1000.0,0.00037961,10]
[314419389,1708326638720,-500.0,0.00038726,4]
[314419390,1708326638729,-500.0,0.00038726,4]
[314419392,1708326638739,-617.3,0.00038727,2]
[314419394,1708326638751,-5125.96,0.00038727,2]
[314419395,1708326638894,-7965.55227092,0.00038727,2]
[314419396,1708326638953,-3505.74095812,0.00038727,2]
[314419397,1708326639013,-30368.14132307,0.00038727,2]
[314419398,1708326639028,-4526.63691375,0.00038727,2]
[314419399,1708326639038,-152.01,0.0003877,2]
[314419400,1708326639047,-800.0,0.00038797,5]
[314419401,1708326639056,-69.079781,0.00038797,20]
[314419457,1708326640228,-130.920219,0.00038797,20]
[314419458,1708326640238,-200.0,0.00038797,20]
[314419459,1708326640250,-500.0,0.00038798,4]
[314419460,1708326640259,-531.78946055,0.00038827,4]
[314419461,1708326640269,-97.14032045,0.00038827,4]
[314419467,1708326641947,360.43720995,0.0003,2]
[314419470,1708326642530,-392.96768286,0.00038726,4]
[314419471,1708326642540,-94.45794895,0.00038827,4]
[314419472,1708326642549,-508.96069928,0.00038827,4]
[314419473,1708326642559,-519.15666447,0.00038827,4]
[314419474,1708326642569,-526.91156139,0.00038827,4]
[314419475,1708326642579,-226.11389564,0.00038827,4]
[314419476,1708326642588,-509.50145565,0.00038827,4]
[314419477,1708326642598,-261.05215987,0.00038827,4]
[314419478,1708326642610,-71.16734347,0.00038827,4]
[314419479,1708326642619,-500.0,0.00038827,4]
[314419480,1708326642629,-72.22002806,0.00038827,4]
[314419481,1708326642736,-174.9897595,0.00038827,4]
[314419482,1708326642810,-271.25857913,0.00038827,4]
[314419483,1708326642820,-522.73473457,0.00038827,4]
[314419484,1708326642830,-208.97131764,0.00038827,4]
[314419486,1708326642840,-514.15230961,0.00038827,4]
[314419487,1708326642849,-516.57775881,0.00038827,4]
[314419488,1708326642859,-500.04323787,0.00038827,4]
[314419489,1708326642868,-585.34202252,0.00038827,4]
[314419490,1708326642878,-523.61614696,0.00038827,4]
[314419491,1708326642887,-533.68081103,0.00038827,4]
[314419492,1708326642896,-500.0,0.00038827,4]
[314419493,1708326642905,-516.1039973,0.00038827,4]
[314419494,1708326642914,-500.0,0.00038827,4]
[314419495,1708326642924,-500.0,0.00038827,2]
[314419496,1708326642933,-500.0,0.00038827,4]
[314419497,1708326642943,-150.0,0.00038863,2]
[314419498,1708326642952,-280.10215641,0.00038889,2]
[314419499,1708326642962,-501.85680336,0.00038889,2]
[314419500,1708326642971,-150.0,0.00038897,2]
[314419501,1708326642980,-571.44056179,0.00038898,4]
[314419502,1708326642990,-500.0,0.00038898,4]
[314419503,1708326642999,-596.42,0.00038898,4]
[314419504,1708326643010,-500.0,0.00038898,4]
[314419505,1708326643019,-500.0,0.00038898,4]
[314419506,1708326643029,-320.27789519,0.00038898,4]
[314419507,1708326643038,-500.0,0.00038898,4]
[314419508,1708326643047,-176.04057519,0.00038898,4]
[314419509,1708326643057,-500.0,0.00038898,4]
[314419510,1708326643066,-500.0,0.00038898,4]
[314419511,1708326643075,-262.49,0.00038898,4]
[314419512,1708326643085,-500.0,0.00038898,4]
[314419513,1708326643094,-509.36,0.00038898,4]
[314419514,1708326643104,-500.0,0.00038898,4]
[314419515,1708326643113,-624.47,0.00038898,4]
[314419516,1708326643123,-500.0,0.00038898,4]
[314419517,1708326643132,-588.51671279,0.00038898,4]
[314419518,1708326643141,-500.0,0.00038898,4]
[314419519,1708326643151,-500.0,0.00038898,4]
[314419520,1708326643160,-500.0,0.00038898,4]
[314419521,1708326643169,-594.14605706,0.00038898,4]
[314419522,1708326643178,-500.0,0.00038899,2]
[314419523,1708326643188,-566.05656196,0.00038899,4]
[314419524,1708326643197,-568.91575423,0.00038899,4]
[314419525,1708326643206,-518.72394792,0.00038899,4]
[314419526,1708326643215,-558.201154,0.00038899,4]
[314419527,1708326643225,-547.32426664,0.00038899,4]
[314419528,1708326643235,-559.99064836,0.00038899,4]
[314419529,1708326643248,-500.0,0.00038899,4]
[314419530,1708326643257,-177.0,0.00038899,4]
[314419531,1708326643267,-500.0,0.00038899,4]
[314419532,1708326643277,-500.0,0.00038899,4]
[314419533,1708326643286,-500.0,0.00038899,2]
[314419534,1708326643295,-500.0,0.00038899,4]
[314419535,1708326643304,-548.60225023,0.00038899,4]
[314419536,1708326643313,-563.97371284,0.00038899,4]
[314419537,1708326643324,-548.28581957,0.00038899,4]
[314419538,1708326643334,-425.22286597,0.00038899,4]
[314419539,1708326643343,-559.48079277,0.00038899,4]
[314419540,1708326643352,-549.46592698,0.00038899,4]
[314419541,1708326643361,-500.0,0.00038899,4]
[314419542,1708326643370,-500.0,0.00038899,4]
[314419543,1708326643379,-563.67034693,0.00038899,4]
[314419544,1708326643389,-500.0,0.00038899,4]
[314419545,1708326643398,-569.85934266,0.00038899,4]
[314419546,1708326643408,-500.0,0.00038899,4]
[314419547,1708326643418,-567.44111231,0.00038899,4]
[314419548,1708326643427,-569.43359473,0.00038899,4]
[314419549,1708326643436,-558.07378802,0.00038899,4]
[314419550,1708326643446,-500.0,0.00038899,4]
[314419551,1708326643454,-544.21474184,0.00038899,4]
[314419552,1708326643464,-550.43628208,0.00038899,4]
[314419553,1708326643473,-564.07282659,0.00038899,4]
[314419554,1708326643482,-150.0,0.00038899,4]
[314419555,1708326643492,-542.9431355,0.00038899,4]